fUST/lending_fUST_20241226
["ID","MTS","AMOUNT","RATE_DAILY","PERIOD"]
[346683448,1735179044604,-500.0,0.00012706,2]
[346683449,1735179044613,-500.0,0.00012706,2]
[346683450,1735179044623,-500.0,0.00012706,2]
[346683451,1735179044633,-500.0,0.00012706,2]
[346683452,1735179044643,-500.0,0.00012706,2]
[346683453,1735179044652,-500.0,0.00012706,2]
[346683454,1735179044661,-500.0,0.00012706,2]
[346683455,1735179044671,-571.62760986,0.00012706,2]
[346683456,1735179044680,-500.0,0.00012706,2]
[346683457,1735179044690,-500.0,0.00012706,2]
[346683458,1735179044699,-500.0,0.00012706,2]
[346683459,1735179044709,-500.0,0.00012706,2]
[346683460,1735179044718,-500.0,0.00012706,2]
[346683461,1735179044729,-500.0,0.00012706,2]
[346683462,1735179044738,-501.98974557,0.00012706,2]
[346683463,1735179044748,-500.0,0.00012706,2]
[346683464,1735179044758,-500.0,0.00012706,2]
[346683465,1735179044767,-500.0,0.00012706,2]
[346683466,1735179044776,-500.0,0.00012706,2]
[346683467,1735179044785,-500.0,0.00012706,2]
[346683468,1735179044795,-500.0,0.00012706,2]
[346683469,1735179044804,-500.0,0.00012706,2]
[346683470,1735179044813,-500.0,0.00012706,2]
[346683471,1735179044823,-500.0,0.00012706,2]
[346683472,1735179044833,-500.0,0.00012706,2]
[346683473,1735179044842,-500.0,0.00012706,2]
[346683474,1735179044851,-500.0,0.00012706,2]
[346683475,1735179044861,-500.0,0.00012706,2]
[346683476,1735179044871,-500.0,0.00012706,2]
[346683477,1735179044881,-500.0,0.00012706,2]
[346683478,1735179044891,-500.0,0.00012706,2]
[346683479,1735179044900,-500.0,0.00012706,2]
[346683480,1735179044909,-500.0,0.00012706,2]
[346683481,1735179044920,-500.0,0.00012706,2]
[346683482,1735179044930,-500.0,0.00012706,2]
[346683483,1735179044940,-500.0,0.00012706,2]
[346683484,1735179044950,-506.17862175,0.00012706,2]
[346683485,1735179044959,-500.0,0.00012706,2]
[346683486,1735179044969,-500.0,0.00012706,2]
[346683487,1735179044980,-500.0,0.00012706,2]
[346683488,1735179044990,-500.0,0.00012706,2]
[346683489,1735179045000,-500.0,0.00012706,2]
[346683490,1735179045010,-500.0,0.00012706,2]
[346683491,1735179045021,-500.0,0.00012706,2]
[346683492,1735179045032,-502.02668584,0.00012706,2]
[346683493,1735179045041,-500.0,0.00012706,2]
[346683494,1735179045050,-500.0,0.00012706,2]
[346683495,1735179045060,-500.0,0.00012706,2]
[346683496,1735179045069,-504.95460782,0.00012706,2]
[346683497,1735179045080,-500.0,0.00012706,2]
[346683498,1735179045090,-500.0,0.00012706,2]
[346683499,1735179045100,-500.0,0.00012706,2]
[346683500,1735179045109,-504.72060271,0.00012706,2]
[346683501,1735179045119,-505.05835562,0.00012706,2]
[346683502,1735179045128,-500.0,0.00012706,2]
[346683503,1735179045137,-500.0,0.00012706,2]
[346683504,1735179045146,-534.23783906,0.00012706,2]
[346683505,1735179045156,-187.9698581,0.00012706,2]
[346683506,1735179045165,-517.22010866,0.00012706,2]
[346683507,1735179045175,-500.0,0.00012706,2]
[346683508,1735179045184,-500.0,0.00012706,2]
[346683509,1735179045193,-500.0,0.00012706,2]
[346683510,1735179045202,-500.0,0.00012706,2]
[346683511,1735179045211,-500.0,0.00012706,2]
[346683512,1735179045221,-500.0,0.00012706,2]
[346683513,1735179045230,-502.37010149,0.00012706,2]
[346683514,1735179045239,-554.54044589,0.00012706,2]
[346683515,1735179045248,-500.0,0.00012706,2]
[346683516,1735179045257,-506.20202535,0.00012706,2]
[346683517,1735179045267,-500.0,0.00012706,2]
[346683518,1735179045276,-500.0,0.00012706,2]
[346683519,1735179045285,-500.0,0.00012706,2]
[346683520,1735179045295,-500.0,0.00012706,2]
[346683521,1735179045304,-500.0,0.00012706,2]
[346683522,1735179045313,-500.0,0.00012706,2]
[346683523,1735179045322,-500.0,0.00012706,2]
[346683524,1735179045331,-500.0,0.00012706,2]
[346683525,1735179045340,-500.0,0.00012706,2]
[346683526,1735179045350,-500.0,0.00012706,2]
[346683527,1735179045359,-500.0,0.00012706,2]
[346683528,1735179045368,-500.0,0.00012706,2]
[346683529,1735179045377,-500.0,0.00012706,2]
[346683530,1735179045386,-500.0,0.00012706,2]
[346683531,1735179045395,-155.09489286,0.00012706,2]
[346683532,1735179045404,-500.0,0.00012706,2]
[346683533,1735179045414,-500.0,0.00012706,2]
[346683534,1735179045423,-500.0,0.00012706,2]
[346683535,1735179045432,-500.0,0.00012706,2]
[346683536,1735179045441,-500.0,0.00012706,2]
[346683537,1735179045451,-500.0,0.00012706,2]
[346683538,1735179045460,-500.0,0.00012706,2]
[346683539,1735179045469,-500.0,0.00012706,2]
[346683540,1735179045478,-500.0,0.00012706,2]
[346683541,1735179045488,-500.0,0.00012706,2]
[346683542,1735179045497,-249.77541494,0.00012706,2]
[346683543,1735179045506,-500.0,0.00012706,2]
[346683544,1735179045515,-500.0,0.00012706,2]
[346683545,1735179045524,-500.0,0.00012706,2]
[346683546,1735179045534,-500.0,0.00012706,2]
[346683547,1735179045543,-500.0,0.00012706,2]
[346683548,1735179045552,-500.0,0.00012706,2]
[346683549,1735179045561,-500.0,0.00012706,2]
[346683550,1735179045570,-502.81981997,0.00012706,2]
[346683551,1735179045579,-500.0,0.00012706,2]
[346683552,1735179045588,-500.0,0.00012706,2]
[346683553,1735179045597,-229.89700709,0.00012706,2]
[346683554,1735179045606,-500.0,0.00012706,2]
[346683555,1735179045615,-500.0,0.00012706,2]
[346683556,1735179045624,-500.0,0.00012706,2]
[346683557,1735179045633,-500.0,0.00012706,2]
[346683558,1735179045642,-500.0,0.00012706,2]
[346683559,1735179045651,-504.91457914,0.00012706,2]
[346683560,1735179045661,-500.0,0.00012706,2]
[346683561,1735179045671,-500.0,0.00012706,2]
[346683562,1735179045680,-500.0,0.00012706,2]
[346683563,1735179045689,-500.0,0.00012706,2]
[346683564,1735179045699,-500.0,0.00012706,2]
[346683565,1735179045708,-503.46811599,0.00012706,2]
[346683566,1735179045717,-500.0,0.00012706,2]
[346683567,1735179045729,-151.0,0.00012706,2]
[346683568,1735179045739,-151.0,0.00012706,2]
[346683569,1735179045749,-153.766708,0.00012706,2]
[346683570,1735179045758,-151.0,0.00012706,2]
[346683571,1735179045767,-500.0,0.00012706,2]
[346683572,1735179045776,-386.02941,0.00012706,2]
[346683573,1735179045785,-504.00957442,0.00012706,2]
[346683574,1735179045794,-386.02941,0.00012706,2]
[346683575,1735179045803,-292.232398,0.00012706,2]
[346683576,1735179045812,-151.0,0.00012706,2]
[346683577,1735179045821,-504.29721183,0.00012706,2]
[346683578,1735179045831,-500.0,0.00012706,2]
[346683579,1735179045840,-151.0,0.00012706,2]
[346683580,1735179045850,-502.39351084,0.00012706,2]
[346683581,1735179045859,-268.876233,0.00012706,2]
[346683582,1735179045868,-500.0,0.00012706,2]
[346683583,1735179045877,-151.0,0.00012706,2]
[346683584,1735179045886,-151.0,0.00012706,2]
[346683585,1735179045895,-500.0,0.00012706,2]
[346683586,1735179045904,-500.0,0.00012706,2]
[346683587,1735179045914,-167.60672,0.00012706,2]
[346683588,1735179045922,-500.0,0.00012706,2]
[346683589,1735179045931,-225.815891,0.00012706,2]
[346683590,1735179045940,-225.815891,0.00012706,2]
[346683591,1735179045949,-225.815891,0.00012706,2]
[346683592,1735179045958,-225.815891,0.00012706,2]
[346683593,1735179045968,-500.0,0.00012707,2]
[346683594,1735179045979,-500.0,0.00012707,2]
[346683595,1735179045987,-500.0,0.00012707,2]
[346683596,1735179045997,-498.42853358,0.00012707,2]
[346683597,1735179046006,-500.0,0.00012707,2]
[346683598,1735179046015,-503.11123506,0.00012707,2]
[346683599,1735179046024,-498.47712475,0.00012707,2]
[346683600,1735179046033,-564.44074346,0.00012707,2]
[346683601,1735179046042,-457.26577289,0.00012707,2]
[346683602,1735179046051,-500.0,0.00012707,2]
[346683603,1735179046060,-498.71844492,0.00012707,2]
[346683604,1735179046069,-500.0,0.00012707,2]
[346683605,1735179046078,-500.0,0.00012707,2]
[346683606,1735179046090,-501.8832034,0.00012707,2]
[346683607,1735179046099,-500.0,0.00012707,2]
[346683608,1735179046109,-500.0,0.00012707,2]
[346683609,1735179046118,-500.0,0.00012707,2]
[346683610,1735179046129,-500.0,0.00012707,2]
[346683611,1735179046138,-500.0,0.00012707,2]
[346683612,1735179046147,-500.0,0.00012707,2]
[346683613,1735179046158,-500.0,0.00012707,2]
[346683614,1735179046167,-500.0,0.00012707,2]
[346683615,1735179046177,-500.0,0.00012707,2]
[346683616,1735179046186,-500.0,0.00012707,2]
[346683617,1735179046195,-500.0,0.00012707,2]
[346683618,1735179046205,-500.0,0.00012707,2]
[346683619,1735179046214,-151.0,0.00012707,2]
[346683620,1735179046224,-151.0,0.00012707,2]
[346683621,1735179046234,-500.0,0.00012707,2]
[346683622,1735179046243,-151.0,0.00012707,2]
[346683623,1735179046252,-386.02941,0.00012707,2]
[346683624,1735179046261,-386.02941,0.00012707,2]
[346683625,1735179046271,-153.532368,0.00012707,2]
[346683626,1735179046282,-151.0,0.00012707,2]
[346683627,1735179046292,-151.0,0.00012708,2]
[346683628,1735179046301,-151.0,0.00012708,2]
[346683629,1735179046310,-151.0,0.00012708,2]
[346683630,1735179046319,-192.543722,0.00012708,2]
[346683631,1735179046328,-420.0,0.00012851,2]
[346683632,1735179046337,-420.0,0.00012873,2]
[346683633,1735179046346,-166.08030438,0.000129,2]
[346683634,1735179046355,-500.0,0.00012976,2]
[346683635,1735179046364,-500.0,0.00012976,2]
[346683636,1735179046373,-500.0,0.00012976,2]
[346683638,1735179046466,-500.0,0.00012976,2]
[346683639,1735179046477,-500.58821296,0.00012976,2]
[346683640,1735179046486,-626.67,0.00012976,2]
[346683641,1735179046495,-500.0,0.00012976,2]
[346683642,1735179046504,-500.0,0.00012976,2]
[346683643,1735179046513,-500.0,0.00012977,2]
[346683644,1735179046523,-500.0,0.00012977,2]
[346683645,1735179046531,-500.0,0.00012977,2]
[346683646,1735179046541,-500.0,0.00012977,2]
[346683647,1735179046550,-500.0,0.00012977,2]
[346683648,1735179046559,-500.0,0.00012977,2]
[346683649,1735179046569,-2933.66,0.00012977,2]
[346683650,1735179046578,-504.18349431,0.00012977,2]
[346683651,1735179046587,-981.76,0.00012977,2]
[346683652,1735179046596,-503.46518949,0.00012977,2]
[346683653,1735179046606,-500.0,0.00012977,2]
[346683654,1735179046615,-646.95638022,0.00012977,2]
[346683655,1735179046624,-518.41195955,0.00012977,2]
[346683656,1735179046633,-500.0,0.00012977,2]
[346683657,1735179046643,-500.0,0.00012977,2]
[346683658,1735179046652,-501.5234216,0.00012977,2]
[346683659,1735179046661,-501.66826708,0.00012977,2]
[346683660,1735179046670,-500.0,0.00012977,2]
[346683662,1735179046679,-1012.38,0.00012977,2]
[346683663,1735179046688,-523.9,0.00012977,2]
[346683664,1735179046698,-501.72230263,0.00012977,2]
[346683665,1735179046706,-589.78,0.00012977,2]
[346683666,1735179046716,-502.38181599,0.00012977,2]
[346683667,1735179046726,-357.40198053,0.00012977,2]
[346683668,1735179046735,-500.0,0.00012977,2]
[346683669,1735179046743,-503.62118472,0.00012977,2]
[346683670,1735179046753,-501.60505883,0.00012977,2]
[346683671,1735179046762,-500.0,0.00012977,2]
[346683672,1735179046771,-500.0,0.00012977,2]
[346683673,1735179046780,-500.0,0.00012977,2]
[346683674,1735179046789,-500.0,0.00012977,2]
[346683675,1735179046798,-504.13478733,0.00012977,2]
[346683676,1735179046807,-627.13139346,0.00012977,2]
[346683677,1735179046817,-1647.1,0.00012977,2]
[346683678,1735179046826,-500.0,0.00012977,2]
[346683679,1735179046835,-500.0,0.00012977,2]
[346683680,1735179046845,-504.7318791,0.00012977,2]
[346683681,1735179046854,-504.33977082,0.00012978,2]
[346683682,1735179046863,-500.0,0.00012978,2]
[346683683,1735179046873,-501.17462224,0.00012978,2]
[346683684,1735179046882,-523.37546391,0.00012978,2]
[346683685,1735179046891,-500.0,0.00012978,2]
[346683687,1735179046901,-501.8002537,0.00012978,2]
[346683688,1735179046911,-320.2180796,0.00012978,2]
[346683689,1735179046922,-504.9490437,0.00012978,2]
[346683690,1735179046933,-500.0,0.00012978,2]
[346683691,1735179046944,-501.25972199,0.00012978,2]
[346683693,1735179046953,-502.24681123,0.00012978,2]
[346683695,1735179046963,-500.0,0.00012978,2]
[346683697,1735179046973,-500.0,0.00012978,2]
[346683698,1735179046982,-500.0,0.00012978,2]
[346683699,1735179046992,-541.40764967,0.00012978,2]
[346683700,1735179047002,-525.50747744,0.00012978,2]
[346683701,1735179047011,-500.0,0.00012978,2]
[346683702,1735179047021,-500.0,0.00012978,2]
[346683703,1735179047031,-501.38222947,0.00012978,2]
[346683704,1735179047040,-500.0,0.00012978,2]
[346683706,1735179047050,-500.99509097,0.00012978,2]
[346683707,1735179047060,-501.43561256,0.00012978,2]
[346683708,1735179047069,-500.0,0.00012978,2]
[346683709,1735179047078,-500.0,0.00012978,2]
[346683710,1735179047091,-539.46993493,0.00012978,2]
[346683711,1735179047100,-500.0,0.00012978,2]
[346683712,1735179047109,-500.0,0.00012978,2]
[346683713,1735179047118,-500.0,0.00012978,2]
[346683714,1735179047127,-500.0,0.00012978,2]
[346683715,1735179047136,-500.0,0.00012978,2]
[346683716,1735179047145,-500.0,0.00012978,2]
[346683717,1735179047154,-500.0,0.00012978,2]
[346683718,1735179047164,-500.0,0.00012978,2]
[346683719,1735179047173,-500.0,0.00012978,2]
[346683720,1735179047182,-501.45595544,0.00012978,2]
[346683721,1735179047191,-500.0,0.00012978,2]
[346683722,1735179047200,-500.0,0.00012978,2]
[346683723,1735179047210,-500.0,0.00012978,2]
[346683724,1735179047219,-500.0,0.00012978,2]
[346683725,1735179047228,-507.96456851,0.00012978,2]
[346683726,1735179047238,-539.89240436,0.00012978,2]
[346683727,1735179047248,-500.0,0.00012978,2]
[346683728,1735179047257,-500.0,0.00012978,2]
[346683729,1735179047266,-500.0,0.00012978,2]
[346683730,1735179047276,-500.0,0.00012978,2]
[346683731,1735179047284,-500.0,0.00012978,2]
[346683732,1735179047293,-500.0,0.00012978,2]
[346683733,1735179047302,-500.0,0.00012978,2]
[346683734,1735179047312,-500.0,0.00012978,2]
[346683735,1735179047321,-500.0,0.00012978,2]
[346683736,1735179047330,-500.0,0.00012978,2]
[346683737,1735179047339,-499.96388,0.00012978,2]
[346683738,1735179047348,-500.0,0.00012978,2]
[346683739,1735179047358,-504.43241694,0.00012978,2]
[346683740,1735179047366,-500.0,0.00012978,2]
[346683741,1735179047375,-500.0,0.00012978,2]
[346683742,1735179047385,-500.0,0.00012978,2]
[346683743,1735179047393,-502.74229661,0.00012978,2]
[346683744,1735179047402,-500.0,0.00012978,2]
[346683745,1735179047411,-242.05296106,0.00012978,2]
[346683746,1735179047420,-306.12041487,0.00012978,2]
[346683747,1735179047429,-507.00518742,0.00012978,2]
[346683748,1735179047439,-500.0,0.00012978,2]
[346683749,1735179047448,-500.0,0.00012978,2]
[346683750,1735179047458,-500.0,0.00012978,2]
[346683751,1735179047467,-495.0,0.00012978,2]
[346683752,1735179047477,-500.0,0.00012978,2]
[346683753,1735179047486,-500.0,0.00012978,2]
[346683754,1735179047495,-500.0,0.00012978,2]
[346683755,1735179047505,-500.0,0.00012978,2]
[346683756,1735179047514,-500.0,0.00012978,2]
[346683757,1735179047523,-500.0,0.00012978,2]
[346683758,1735179047532,-500.0,0.00012978,2]
[346683759,1735179047542,-500.0,0.00012978,2]
[346683760,1735179047551,-500.0,0.00012978,2]
[346683761,1735179047560,-500.0,0.00012978,2]
[346683762,1735179047569,-500.0,0.00012978,2]
[346683763,1735179047579,-500.0,0.00012978,2]
[346683764,1735179047588,-500.0,0.00012978,2]
[346683765,1735179047597,-500.0,0.00012978,2]
[346683766,1735179047606,-168.0,0.00012978,2]
[346683767,1735179047615,-445.9881447,0.00012978,2]
[346683768,1735179047624,-500.0,0.00012978,2]
[346683769,1735179047633,-500.0,0.00012978,2]
[346683770,1735179047642,-500.0,0.00012978,2]
[346683771,1735179047651,-508.14,0.00012978,2]
[346683772,1735179047660,-500.0,0.00012978,2]
[346683773,1735179047669,-500.0,0.00012978,2]
[346683774,1735179047678,-500.0,0.00012978,2]
[346683775,1735179047687,-500.0,0.00012978,2]
[346683776,1735179047696,-500.0,0.00012978,2]
[346683777,1735179047705,-500.0,0.00012978,2]
[346683778,1735179047714,-525.51772651,0.00012978,2]
[346683779,1735179047724,-500.0,0.00012978,2]
[346683780,1735179047733,-500.0,0.00012978,2]
[346683781,1735179047742,-500.0,0.00012978,2]
[346683782,1735179047751,-275.58649434,0.00012978,2]
[346683783,1735179047760,-500.0,0.00012978,2]
[346683784,1735179047769,-500.0,0.00012978,2]
[346683785,1735179047778,-500.0,0.00012978,2]
[346683786,1735179047788,-500.0,0.00012978,2]
[346683787,1735179047797,-500.0,0.00012978,2]
[346683788,1735179047806,-500.0,0.00012978,2]
[346683789,1735179047815,-500.0,0.00012978,2]
[346683790,1735179047824,-500.0,0.00012978,2]
[346683791,1735179047833,-501.94672838,0.00012978,2]
[346683792,1735179047842,-500.0,0.00012978,2]
[346683793,1735179047851,-500.0,0.00012978,2]
[346683794,1735179047861,-596.08,0.00012978,2]
[346683795,1735179047870,-500.0,0.00012978,2]
[346683796,1735179047880,-500.0,0.00012978,2]
[346683797,1735179047890,-500.0,0.00012978,2]
[346683798,1735179047901,-500.0,0.00012978,2]
[346683799,1735179047911,-500.0,0.00012978,2]
[346683800,1735179047920,-500.0,0.00012978,2]
[346683801,1735179047929,-508.30154239,0.00012978,2]
[346683802,1735179047938,-398.24680458,0.00012978,2]
[346683803,1735179047947,-1933.337201,0.00012978,2]
[346683804,1735179047957,-151.0,0.00012978,2]
[346683805,1735179047966,-500.0,0.00012978,2]
[346683806,1735179047977,-500.0,0.00012978,2]
[346683807,1735179047986,-500.0,0.00012978,2]
[346683808,1735179047996,-1933.337201,0.00012978,2]
[346683809,1735179048005,-500.0,0.00012978,2]
[346683810,1735179048014,-254.661434,0.00012978,2]
[346683811,1735179048024,-501.06397848,0.00012978,2]
[346683812,1735179048033,-500.0,0.00012978,2]
[346683813,1735179048042,-500.0,0.00012978,2]
[346683814,1735179048051,-500.0,0.00012978,2]
[346683815,1735179048061,-500.0,0.00012978,2]
[346683816,1735179048071,-500.0,0.00012978,2]
[346683817,1735179048081,-512.31465351,0.00012978,2]
[346683818,1735179048093,-500.0,0.00012978,2]
[346683819,1735179048103,-151.0,0.00012978,2]
[346683820,1735179048112,-151.0,0.00012978,2]
[346683821,1735179048123,-500.0,0.00012978,2]
[346683822,1735179048132,-500.0,0.00012978,2]
[346683823,1735179048141,-500.0,0.00012978,2]
[346683824,1735179048150,-500.0,0.00012978,2]
[346683825,1735179048159,-503.04173828,0.00012978,2]
[346683826,1735179048169,-153.06973576,0.00012978,2]
[346683827,1735179048178,-500.0,0.00012978,2]
[346683828,1735179048187,-500.0,0.00012978,2]
[346683829,1735179048196,-500.0,0.00012978,2]
[346683830,1735179048205,-500.0,0.00012978,2]
[346683831,1735179048214,-641.54,0.00012978,2]
[346683832,1735179048223,-500.0,0.00012978,2]
[346683833,1735179048233,-500.0,0.00012978,2]
[346683834,1735179048242,-500.0,0.00012978,2]
[346683835,1735179048251,-500.0,0.00012978,2]
[346683836,1735179048260,-1790.25,0.00012978,2]
[346683837,1735179048269,-500.0,0.00012978,2]
[346683838,1735179048278,-501.64386536,0.00012978,2]
[346683839,1735179048287,-500.0,0.00012978,2]
[346683840,1735179048296,-500.0,0.00012978,2]
[346683841,1735179048306,-500.0,0.00012978,2]
[346683842,1735179048315,-503.57575166,0.00012978,2]
[346683843,1735179048324,-500.0,0.00012978,2]
[346683844,1735179048334,-500.0,0.00012978,2]
[346683845,1735179048343,-495.0,0.00012978,2]
[346683846,1735179048352,-500.0,0.00012978,2]
[346683847,1735179048361,-500.0,0.00012978,2]
[346683848,1735179048370,-500.0,0.00012978,2]
[346683849,1735179048380,-500.0,0.00012978,2]
[346683850,1735179048389,-500.0,0.00012978,2]
[346683851,1735179048479,-578.6,0.00012978,2]
[346683852,1735179048490,-506.7128573,0.00012978,2]
[346683853,1735179048500,-504.1835421,0.00012978,2]
[346683854,1735179048509,-240.104377,0.00012978,2]
[346683855,1735179048518,-500.0,0.00012978,2]
[346683856,1735179048528,-500.0,0.00012978,2]
[346683857,1735179048537,-500.0,0.00012978,2]
[346683858,1735179048546,-501.82396331,0.00012978,2]
[346683859,1735179048555,-500.0,0.00012978,2]
[346683860,1735179048565,-504.6478075,0.00012978,2]
[346683861,1735179048574,-500.0,0.00012978,2]
[346683862,1735179048583,-500.0,0.00012978,2]
[346683863,1735179048593,-504.27090784,0.00012978,2]
[346683864,1735179048602,-500.0,0.00012978,2]
[346683865,1735179048611,-500.0,0.00012978,2]
[346683866,1735179048620,-503.27050697,0.00012978,2]
[346683867,1735179048629,-500.0,0.00012978,2]
[346683868,1735179048639,-500.0,0.00012978,2]
[346683869,1735179048648,-500.0,0.00012978,2]
[346683870,1735179048657,-386.02941,0.00012978,2]
[346683871,1735179048666,-500.0,0.00012978,2]
[346683872,1735179048676,-503.0707716,0.00012978,2]
[346683873,1735179048685,-386.02941,0.00012978,2]
[346683874,1735179048694,-500.0,0.00012978,2]
[346683875,1735179048703,-500.0,0.00012978,2]
[346683876,1735179048712,-502.8834404,0.00012978,2]
[346683877,1735179048722,-503.06700004,0.00012978,2]
[346683878,1735179048732,-500.0,0.00012978,2]
[346683879,1735179048742,-500.0,0.00012978,2]
[346683880,1735179048751,-503.84527599,0.00012978,2]
[346683881,1735179048760,-500.0,0.00012978,2]
[346683882,1735179048769,-500.0,0.00012978,2]
[346683883,1735179048778,-151.0,0.00012978,2]
[346683884,1735179048788,-151.626582,0.00012978,2]
[346683885,1735179048797,-501.77955013,0.00012978,2]
[346683886,1735179048807,-500.0,0.00012978,2]
[346683887,1735179048816,-500.0,0.00012978,2]
[346683888,1735179048826,-503.02782726,0.00012978,2]
[346683889,1735179048835,-481.70481244,0.00012978,2]
[346683890,1735179048845,-500.0,0.00012978,2]
[346683891,1735179048854,-500.0,0.00012978,2]
[346683892,1735179048863,-502.82034674,0.00012978,2]
[346683893,1735179048873,-500.0,0.00012978,2]
[346683894,1735179048882,-500.0,0.00012978,2]
[346683895,1735179048891,-460.56727598,0.00012978,2]
[346683896,1735179048900,-501.38474205,0.00012978,2]
[346683897,1735179048910,-500.0,0.00012978,2]
[346683898,1735179048919,-501.00352064,0.00012978,2]
[346683899,1735179048928,-427.03677932,0.00012978,2]
[346683900,1735179048937,-500.0,0.00012978,2]
[346683901,1735179048947,-500.0,0.00012978,2]
[346683902,1735179048956,-500.0,0.00012978,2]
[346683903,1735179048966,-504.72865151,0.00012978,2]
[346683904,1735179048976,-500.0,0.00012978,2]
[346683905,1735179048986,-500.0,0.00012978,2]
[346683906,1735179048995,-501.42159556,0.00012978,2]
[346683907,1735179049005,-155.394164,0.00012978,2]
[346683908,1735179049014,-500.0,0.00012978,2]
[346683909,1735179049024,-503.4969002,0.00012978,2]
[346683910,1735179049033,-500.0,0.00012978,2]
[346683911,1735179049042,-500.0,0.00012978,2]
[346683912,1735179049051,-500.0,0.00012978,2]
[346683913,1735179049061,-501.65305322,0.00012978,2]
[346683914,1735179049071,-163.74157313,0.00012978,2]
[346683915,1735179049080,-500.0,0.00012978,2]
[346683916,1735179049093,-500.0,0.00012978,2]
[346683917,1735179049102,-505.09238858,0.00012978,2]
[346683918,1735179049111,-502.3069787,0.00012978,2]
[346683919,1735179049121,-502.61738782,0.00012978,2]
[346683920,1735179049130,-500.0,0.00012978,2]
[346683921,1735179049139,-500.0,0.00012978,2]
[346683922,1735179049149,-500.0,0.00012978,2]
[346683923,1735179049158,-500.0,0.00012978,2]
[346683924,1735179049169,-500.0,0.00012978,2]
[346683925,1735179049179,-501.20239058,0.00012978,2]
[346683926,1735179049188,-500.0,0.00012978,2]
[346683927,1735179049198,-500.0,0.00012978,2]
[346683928,1735179049207,-500.0,0.00012978,2]
[346683929,1735179049217,-500.0,0.00012978,2]
[346683930,1735179049227,-500.0,0.00012978,2]
[346683931,1735179049236,-500.0,0.00012978,2]
[346683932,1735179049246,-502.59027099,0.00012978,2]
[346683933,1735179049255,-502.72430286,0.00012978,2]
[346683934,1735179049265,-503.9812361,0.00012978,2]
[346683935,1735179049275,-502.70724888,0.00012978,2]
[346683936,1735179049284,-502.39498162,0.00012978,2]
[346683937,1735179049293,-2082.25,0.00012978,2]
[346683938,1735179049302,-504.24502599,0.00012978,2]
[346683939,1735179049311,-500.0,0.00012978,2]
[346683940,1735179049320,-500.0,0.00012978,2]
[346683941,1735179049329,-500.0,0.00012978,2]
[346683942,1735179049338,-502.78781178,0.00012978,2]
[346683943,1735179049347,-500.0,0.00012978,2]
[346683944,1735179049357,-500.0,0.00012978,2]
[346683945,1735179049366,-501.99693645,0.00012978,2]
[346683946,1735179049375,-500.0,0.00012978,2]
[346683947,1735179049385,-500.90634856,0.00012978,2]
[346683948,1735179049394,-500.0,0.00012978,2]
[346683949,1735179049404,-500.98912757,0.00012978,2]
[346683950,1735179049413,-500.0,0.00012978,2]
[346683951,1735179049423,-225.815891,0.00012978,2]
[346683952,1735179049432,-500.0,0.00012978,2]
[346683953,1735179049441,-225.815891,0.00012978,2]
[346683954,1735179049450,-500.0,0.00012978,2]